Workbook

Sheet Sheet4
D2: no pump | G2: pump
B3: setpoint | D3: ts | E3: up | F3: down | G3: ts | H3: up | I3: down
B4: 25 | C4: 25.3 | D4: 714 | E4: 707 | F4: 712 | G4: 716 | H4: 710 | I4: 714
B5: 30 | C5: 30.1 | D5: 724 | E5: 717 | F5: 723 | G5: 726 | H5: 720 | I5: 725
B6: 35 | C6: 34.8 | D6: 734 | E6: 727 | F6: 732 | G6: 736 | H6: 729.5 | I6: 734
B7: 40 | C7: 39.6 | D7: 743 | E7: 737 | F7: 742 | G7: 746 | H7: 739 | I7: 744
B8: 45 | C8: 44.4 | D8: 754 | E8: 747 | F8: 752
B22: 25 | C22: 30 | D22: 35 | E22: 40 | F22: 45 | G22: 50 | H22: 55 | I22: 60 | J22: 65 | K22: 70 | L22: 75 | M22: 80 | N22: 80 | O22: 85 | P22: 90 | Q22: 95 | R22: 100
B23: 25.3 | C23: 30.1 | D23: 34.8 | E23: 39.6 | F23: 44.4 | G23: 49.6 | H23: 54.2 | I23: 59 | J23: 64 | K23: 69.6 | L23: 73.7 | M23: 76.6 | N23: 79.1 | O23: 85.6 | P23: 88.7 | Q23: 93.2 | R23: 99.1
A24: ts np | B24: 714 | C24: 724 | D24: 734 | E24: 743 | F24: 754 | G24: 764 | H24: 773 | I24: 783 | J24: 793 | K24: 804.5 | L24: 813 | M24: 819 | N24: 824 | O24: 835 | P24: 842 | Q24: 851 | R24: 863
A25: up np | B25: 707 | C25: 717 | D25: 727 | E25: 737 | F25: 747 | G25: 757 | H25: 767 | I25: 777 | J25: 787 | K25: 798 | L25: 806 | M25: 813 | N25: 818 | O25: 828.5 | P25: 835 | Q25: 844 | R25: 856
A26: down np | B26: 712 | C26: 723 | D26: 732 | E26: 742 | F26: 752 | G26: 762 | H26: 771 | I26: 781 | J26: 791 | K26: 804 | L26: 811 | M26: 819 | N26: 823 | O26: 832 | P26: 839 | Q26: 847 | R26: 859
A27: ts p | B27: 716 | C27: 726 | D27: 736 | E27: 746 | F27: 756 | G27: 767 | H27: 776 | I27: 786 | J27: 795 | K27: 807 | L27: 815 | M27: 821 | N27: 826
A28: up p | B28: 710 | C28: 720 | D28: 729.5 | E28: 739 | F28: 749 | G28: 760 | H28: 769 | I28: 779 | J28: 789 | K28: 800 | L28: 807 | M28: 814 | N28: 820
A29: down p | B29: 714 | C29: 725 | D29: 734 | E29: 744 | F29: 754 | G29: 764 | H29: 773 | I29: 783 | J29: 793 | K29: 806 | L29: 813 | M29: 820 | N29: 825
B30: =(B24-663.55)/2.0204 -> 24.97030291 | C30: 29.91981786 | D30: 34.86933281 | E30: 39.32389626 | F30: 44.7683627 | G30: 49.71787765 | H30: 54.1724411 | I30: 59.12195605 | J30: 64.071471 | K30: 69.76341319 | L30: 73.97050089 | M30: 76.94020986 | N30: 79.41496733 | O30: 84.85943378 | P30: 88.32409424 | Q30: 92.77865769 | R30: =(R24-663.55)/2.0204 -> 98.71807563 | T30: y = 2,0204x + 663,55
B31: =(B25-657.01)/2.0175 -> 24.77819083 | C31: 29.73482032 | D31: 34.69144981 | E31: 39.64807931 | F31: 44.6047088 | G31: 49.56133829 | H31: 54.51796778 | I31: 59.47459727 | J31: 64.43122677 | K31: 69.88351921 | L31: 73.8488228 | M31: 77.31846344 | N31: 79.79677819 | O31: 85.00123916 | P31: 88.22304833 | Q31: 92.68401487 | R31: =(R25-657.01)/2.0175 -> 98.63197026 | T31: y = 2,0175x + 657,01
B32: =(B26-663.45)/1.9812 -> 24.50535029 | C32: 30.05754088 | D32: 34.60024228 | E32: 39.64768827 | F32: 44.69513426 | G32: 49.74258025 | H32: 54.28528165 | I32: 59.33272764 | J32: 64.38017363 | K32: 70.94185342 | L32: 74.47506562 | M32: 78.51302241 | N32: 80.53200081 | O32: 85.0747022 | P32: 88.6079144 | Q32: 92.64587119 | R32: =(R26-663.45)/1.9812 -> 98.70280638 | T32: y = 1,9812x + 663,45
B33: =(B27-665.1)/2.0381 -> 24.97424071 | C33: 29.88077131 | D33: 34.7873019 | E33: 39.69383249 | F33: 44.60036308 | G33: 49.99754673 | H33: 54.41342427 | I33: 59.31995486 | J33: 63.73583239 | K33: 69.6236691 | L33: 73.54889358 | M33: 76.49281193 | N33: 78.94607723 | O33: -326.3333497 | P33: -326.3333497 | Q33: -326.3333497 | R33: =(R27-665.1)/2.0381 -> -326.3333497 | T33: y = 2,0381x + 665,1
B34: =(B28-659)/2.0264 -> 25.16778523 | C34: 30.10264508 | D34: 34.79076194 | E34: 39.4788788 | F34: 44.41373865 | G34: 49.84208448 | H34: 54.28345835 | I34: 59.2183182 | J34: 64.15317805 | K34: 69.58152388 | L34: 73.03592578 | M34: 76.49032767 | N34: 79.45124358 | O34: -325.2072641 | P34: -325.2072641 | Q34: -325.2072641 | R34: =(R28-659)/2.0264 -> -325.2072641 | T34: y = 2,0264x + 659
B35: =(B29-662.66)/2.0478 -> 25.0708077 | C35: 30.44242602 | D35: 34.83738646 | E35: 39.72067585 | F35: 44.60396523 | G35: 49.48725461 | H35: 53.88221506 | I35: 58.76550444 | J35: 63.64879383 | K35: 69.99707003 | L35: 73.41537259 | M35: 76.83367516 | N35: 79.27531986 | O35: -323.5960543 | P35: -323.5960543 | Q35: -323.5960543 | R35: =(R29-662.66)/2.0478 -> -323.5960543 | T35: y = 2,0478x + 662,66
B36: =B$23-B30 -> 0.3296970897 | C36: =C$23-C30 -> 0.1801821422 | D36: -0.06933280539 | E36: 0.2761037418 | F36: -0.3683627005 | G36: -0.117877648 | H36: 0.02755889923 | I36: -0.1219560483 | J36: -0.07147099584 | K36: -0.1634131855 | L36: -0.2705008909 | M36: -0.3402098594 | N36: -0.3149673332 | O36: 0.7405662245 | P36: 0.3759057612 | Q36: 0.4213423085 | R36: 0.3819243714
B37: =B$23-B31 -> 0.5218091698 | C37: 0.3651796778 | D37: 0.1085501859 | E37: -0.04807930607 | F37: -0.204708798 | G37: 0.03866171004 | H37: -0.3179677819 | I37: -0.4745972739 | J37: -0.4312267658 | K37: -0.2835192069 | L37: -0.1488228005 | M37: -0.7184634449 | N37: -0.6967781908 | O37: 0.5987608426 | P37: 0.4769516729 | Q37: 0.5159851301 | R37: 0.4680297398
B38: =B$23-B32 -> 0.7946497072 | C38: 0.04245911569 | D38: 0.1997577226 | E38: -0.04768826974 | F38: -0.2951342621 | G38: -0.1425802544 | H38: -0.08528164749 | I38: -0.3327276398 | J38: -0.3801736321 | K38: -1.341853422 | L38: -0.7750656168 | M38: -1.913022411 | N38: -1.432000808 | O38: 0.5252977993 | P38: 0.09208560468 | Q38: 0.5541288108 | R38: 0.39719362
B39: =B$23-B33 -> 0.3257592856 | C39: 0.2192286934 | D39: 0.01269810117 | E39: -0.09383249105 | F39: -0.2003630833 | G39: -0.3975467347 | H39: -0.2134242677 | I39: -0.3199548599 | J39: 0.2641676071 | K39: -0.02366910358 | L39: 0.1511064226 | M39: 0.1071880673 | N39: 0.1539227712
B40: =B$23-B34 -> 0.1322147651 | C40: -0.00264508488 | D40: 0.009238057639 | E40: 0.1211212002 | F40: -0.01373864982 | G40: -0.2420844848 | H40: -0.08345834978 | I40: -0.2183181998 | J40: -0.1531780497 | K40: 0.01847611528 | L40: 0.6640742203 | M40: 0.1096723253 | N40: -0.3512435847
B41: =B$23-B35 -> 0.2291923039 | C41: -0.3424260182 | D41: -0.03738646352 | E41: -0.1206758473 | F41: -0.203965231 | G41: 0.1127453853 | H41: 0.3177849399 | I41: 0.2344955562 | J41: 0.3512061725 | K41: -0.3970700264 | L41: 0.284627405 | M41: -0.2336751636 | N41: -0.1753198555
